bitfinex-derivatives/quotes_ETHF0:USTF0_20250531
["timestamp","ask_amount","ask_price","bid_price","bid_amount"]
[1748650223086,3.99719,2532.4,2532.0,1.25422312]
[1748650223389,0.20332312,2532.5,2532.3,3.2078]
[1748650223587,0.99266312,2532.5,2532.4,6.4373]
[1748650224095,0.99266312,2532.5,2532.4,5.189]
[1748650224888,0.20332312,2532.5,2532.4,5.189]
[1748650225088,0.20332312,2532.5,2532.3,1.2716]
[1748650225089,0.20332312,2532.5,2532.0,0.00592312]
[1748650225281,3.2078,2532.3,2531.4,8.3978]
[1748650225483,0.20332312,2532.5,2531.7,3.2078]
[1748650225684,4.5069,2532.4,2531.8,1.2716]
[1748650225983,3.2078,2532.4,2532.0,3.2078]
[1748650226188,0.20332312,2532.5,2532.4,0.78937]
[1748650226393,0.20332312,2532.5,2532.4,5.19]
[1748650226694,0.20332312,2532.5,2532.4,12.25097]
[1748650226992,0.6763,2533.3,2533.0,0.78918]
[1748650227196,0.78912,2533.2,2533.1,1.2716]
[1748650227586,0.78915,2533.1,2533.0,5.19]
[1748650230385,0.1973,2533.2,2533.0,10.19]
[1748650230598,0.1973,2533.2,2533.1,4.5154]
[1748650230896,0.1973,2533.2,2533.1,5.30455]
[1748650231098,0.1973,2533.2,2533.1,10.30455]
[1748650231394,0.1973,2533.2,2533.1,4.5154]
[1748650231600,0.1973,2533.2,2533.1,10.30455]
[1748650232189,3.2078,2534.6,2533.1,9.5154]
[1748650232395,0.78881,2534.3,2534.0,3.99664]
[1748650232597,0.78881,2534.2,2534.1,6.5142]
[1748650232789,1.97227,2533.9,2533.4,3.2078]
[1748650232989,0.78912,2533.2,2533.1,5.189]
[1748650233803,0.00592312,2533.4,2533.3,0.78909]
[1748650234103,3.12e-06,2533.4,2533.3,3.99689]
[1748650234296,3.12e-06,2533.4,2533.3,8.99689]
[1748650234496,3.12e-06,2533.4,2533.3,9.61979]
[1748650234699,3.12e-06,2533.4,2533.3,10.89899]
[1748650237402,3.12e-06,2533.4,2533.3,5.89899]
[1748650237704,0.78906312,2533.4,2533.3,3.2078]
[1748650237909,1.25290312,2533.4,2533.3,3.99689]
[1748650238308,3.12e-06,2533.4,2533.3,3.99689]
[1748650238502,3.12e-06,2533.4,2533.3,8.99689]
[1748650238898,3.12e-06,2533.4,2533.3,9.63909]
[1748650239209,3.12e-06,2533.4,2533.3,11.00409]
[1748650239795,1.2529,2533.9,2533.3,11.00409]
[1748650239796,0.6611,2534.4,2533.3,10.215]
[1748650240002,0.78887,2534.1,2533.8,3.2078]
[1748650240207,3.49200366,2535.8,2533.9,5.188]
[1748650240508,3.2078,2535.2,2534.4,3.99652]
[1748650240701,0.78866,2534.7,2534.5,6.4364]
[1748650240901,0.00592312,2534.9,2534.5,6.4364]
[1748650241101,0.78867,2534.7,2534.5,7.22511]
[1748650241302,0.78869,2534.6,2534.5,5.188]
[1748650241509,0.78867,2534.7,2534.5,5.188]
[1748650241709,0.78865,2534.7,2534.5,5.188]
[1748650241910,0.78869,2534.6,2534.5,5.188]
[1748650242205,0.78869,2534.6,2534.3,0.00592312]
[1748650242206,0.78875,2534.4,2534.3,0.00592312]
[1748650242411,0.78875,2534.4,2534.3,3.12e-06]
[1748650242606,5.78875,2534.4,2534.3,3.12e-06]
[1748650242801,7.14135,2534.4,2534.3,3.12e-06]
[1748650243001,2.14135,2534.4,2534.3,3.12e-06]
[1748650243204,1.3526,2534.4,2534.3,3.12e-06]
[1748650244106,0.00592312,2534.9,2534.3,3.12e-06]
[1748650244309,1.3526,2534.8,2534.3,2.11727312]
[1748650244511,0.78869,2534.6,2534.3,1.32850312]
[1748650244711,1.3526,2534.5,2534.3,3.12e-06]
[1748650244904,0.78875,2534.4,2534.3,3.12e-06]
[1748650245105,1.46405,2534.4,2534.3,3.12e-06]
[1748650245604,1.3526,2534.5,2534.3,3.99658312]
[1748650245805,0.78875,2534.4,2534.3,3.12e-06]
[1748650246098,1.3526,2534.5,2534.3,3.12e-06]
[1748650246301,0.78875,2534.4,2534.3,3.12e-06]
[1748650247811,3.883,2534.8,2534.3,3.12e-06]
[1748650248012,5.1374,2534.8,2534.5,0.78869]
[1748650248214,0.00592312,2534.9,2534.8,0.78862]
[1748650248616,0.79454312,2534.9,2534.7,3.99645]
[1748650248915,2.04894312,2534.9,2534.7,3.2078]
[1748650249119,2.04893312,2534.9,2534.6,5.187]
[1748650249410,0.00592312,2534.9,2534.8,0.78862]
[1748650250214,0.00592312,2534.9,2534.7,3.2078]
[1748650250516,0.00592312,2534.9,2534.8,5.187]
[1748650250707,1.36892312,2534.9,2534.8,5.187]
[1748650250909,2.15751312,2534.9,2534.7,0.78866]
[1748650251108,2.15751312,2534.9,2534.8,5.187]
[1748650252216,1.36892312,2534.9,2534.4,8.3938]
[1748650252409,0.78872,2534.5,2534.4,8.3938]
[1748650252711,3.8291,2534.8,2534.3,3.12e-06]
[1748650252921,0.78875,2534.4,2534.3,3.12e-06]
[1748650253408,2.13355,2534.4,2534.3,3.12e-06]
[1748650254814,1.3448,2534.4,2534.3,3.12e-06]
[1748650255015,3.2078,2534.7,2534.4,0.78872]
[1748650255219,5.35507,2534.7,2534.5,5.173]
[1748650255411,0.78869,2534.6,2534.5,5.173]
[1748650255717,2.14729,2534.6,2534.5,5.173]
[1748650255913,1.3586,2534.6,2534.5,5.96172]
[1748650256418,1.3586,2534.6,2534.5,5.173]
[1748650257516,2.14729,2534.6,2534.5,5.173]
[1748650257920,1.3586,2534.6,2534.5,5.173]
[1748650258215,0.78866,2534.7,2534.5,5.173]
[1748650258413,2.03119,2534.6,2534.5,5.173]
[1748650258609,0.00592312,2534.9,2534.7,0.78866]
[1748650258810,0.79452312,2534.9,2534.6,0.78867]
[1748650259214,0.78867,2534.7,2534.5,8.3808]
[1748650259420,0.00592312,2534.9,2534.6,3.2078]
[1748650259617,0.00592312,2534.9,2534.8,0.78863]
[1748650259811,0.00592312,2534.9,2534.6,3.99649]
[1748650260014,1.24842312,2534.9,2534.8,0.78863]
[1748650260221,0.00592312,2534.9,2534.8,0.78863]
[1748650260421,0.00592312,2534.9,2534.6,4.5208]
[1748650260616,0.79453312,2534.9,2534.7,0.78865]
[1748650260817,0.78866,2534.7,2534.6,3.2078]
[1748650261017,1.3422,2534.8,2534.6,3.2078]
[1748650261320,2.13083,2534.8,2534.7,5.173]
[1748650261519,2.81093,2534.8,2534.7,5.173]
[1748650261719,0.00592312,2534.9,2534.7,5.173]
[1748650261920,0.00592312,2534.9,2534.8,0.78863]
[1748650263422,0.79452312,2534.9,2534.7,7.29084]
[1748650263624,0.00592312,2534.9,2534.7,5.173]
[1748650263823,8.21372312,2534.9,2534.3,3.12e-06]
[1748650264126,2.0449,2534.8,2534.3,3.20780312]
[1748650264319,0.78875,2534.4,2534.3,3.20780312]
[1748650264720,2.0449,2534.8,2534.3,3.20780312]
[1748650265121,3.21372312,2534.9,2534.3,3.20780312]
[1748650265332,0.00592312,2534.9,2534.7,0.78864]
[1748650265524,1.37332312,2534.9,2534.8,5.172]
[1748650266027,2.16191312,2534.9,2534.8,5.172]
[1748650266327,1.37332312,2534.9,2534.8,5.172]
[1748650266521,0.00592312,2534.9,2534.8,5.96063]
[1748650266728,0.00592312,2534.9,2534.8,5.172]
[1748650267226,1.24872312,2534.9,2534.8,5.172]
[1748650267527,2.03731312,2534.9,2534.8,5.172]
[1748650268030,1.24872312,2534.9,2534.8,5.172]
[1748650268725,2.03731312,2534.9,2534.8,5.172]
[1748650268926,1.24872312,2534.9,2534.8,5.172]
[1748650269225,1.24872312,2534.9,2534.8,5.96063]
[1748650269531,0.00592312,2534.9,2534.8,5.172]
[1748650269825,0.79451312,2534.9,2534.8,5.172]
[1748650270234,0.78869,2534.6,2534.5,3.2078]
[1748650270526,1.2344,2534.8,2534.4,0.78875]
[1748650270831,2.02313,2534.5,2534.3,3.12e-06]
[1748650271030,1.2344,2534.5,2534.3,0.78877312]
[1748650271228,2.02313,2534.5,2534.3,3.12e-06]
[1748650271522,1.2344,2534.5,2534.3,3.12e-06]
[1748650271729,0.78875,2534.4,2534.3,3.12e-06]
[1748650274025,1.2344,2534.5,2534.3,3.12e-06]
[1748650274227,0.638,2534.7,2534.5,0.78872]
[1748650274432,0.00592312,2534.9,2534.8,0.78863]
[1748650274629,0.79453312,2534.9,2534.6,3.99647]
[1748650274821,0.78863,2534.8,2534.6,3.99647]
[1748650275024,0.00592312,2534.9,2534.8,0.78863]
[1748650275232,0.00592312,2534.9,2534.8,5.96063]
[1748650277327,1.333,2535.4,2535.3,0.78847]
[1748650277729,0.78833,2535.8,2535.3,8.3798]
[1748650278032,3.2078,2536.0,2535.3,8.3798]
[1748650278325,0.00592312,2535.9,2535.7,3.2078]
[1748650278531,0.00592312,2535.9,2535.8,7.25032]
[1748650280225,0.6346,2536.5,2536.2,0.78818]
[1748650280431,1.9295,2536.5,2536.2,5.172]
[1748650280736,0.78816,2536.3,2536.2,5.172]
[1748650281830,2.08306,2536.3,2536.2,5.172]
[1748650284132,1.2949,2536.3,2536.2,5.172]
[1748650284537,2.08306,2536.3,2536.2,5.172]
[1748650287534,1.2949,2536.3,2536.2,5.172]
[1748650287939,2.08306,2536.3,2536.2,5.172]
[1748650288234,0.78832,2535.8,2535.7,8.3638]
[1748650289136,1.3009,2536.0,2535.7,8.3638]
[1748650289340,0.78832,2535.8,2535.7,8.3638]
[1748650290141,0.78832,2535.8,2535.7,5.156]
[1748650291043,1.43329,2535.9,2535.7,5.94435]
[1748650291248,0.78832,2535.8,2535.7,5.156]
[1748650291641,2.05732,2535.8,2535.7,5.156]
[1748650294243,2.05732,2535.8,2535.5,0.00592312]
[1748650294244,0.78838,2535.6,2535.5,0.00592312]
[1748650294446,3.99618,2535.6,2535.5,0.00592312]
[1748650294941,5.29378,2535.6,2535.5,0.00592312]
[1748650295142,2.08598,2535.6,2535.5,0.00592312]
[1748650296733,6.2976,2535.6,2535.0,42.9708]
[1748650296942,0.78853,2535.1,2535.0,42.9708]
[1748650297245,0.78853,2535.1,2534.9,5.156]
[1748650297445,2.07917,2535.0,2534.9,5.156]
[1748650297746,2.07917,2535.0,2534.5,5.156]
[1748650297747,0.78869,2534.6,2534.5,5.156]
[1748650298147,1.2761,2534.9,2534.5,5.156]
[1748650298148,0.78867,2534.7,2534.5,5.156]
[1748650298349,2.07929,2534.6,2534.5,5.156]
[1748650298751,0.78875,2534.4,2534.3,3.21372312]
[1748650298943,0.98595,2534.4,2534.3,3.21372312]
[1748650299143,0.1972,2534.4,2534.3,3.21372312]
[1748650299544,1.4878,2534.4,2534.3,4.00250312]
[1748650299743,1.4878,2534.4,2534.3,3.21372312]
[1748650299946,1.4878,2534.4,2534.3,4.00250312]
[1748650300843,0.1972,2534.4,2534.3,4.00250312]
[1748650301038,3.2078,2535.0,2534.3,9.00250312]
[1748650301349,5.1203,2535.4,2534.6,3.2078]
[1748650301542,5.1203,2535.4,2534.7,6.5026]
[1748650301743,1.97125,2535.3,2534.4,0.78872]
[1748650301949,1.28082312,2535.2,2534.5,5.157]
[1748650302148,0.78869,2534.6,2534.5,5.157]
[1748650302643,0.78867,2534.7,2534.5,5.157]
[1748650302846,0.78864,2534.8,2534.5,5.94572]
[1748650303052,1.2749,2534.7,2534.5,5.157]
[1748650303251,0.6402,2535.0,2534.6,3.2078]
[1748650303550,1.42878,2535.0,2534.7,2.13424]
[1748650304050,0.6402,2535.0,2534.5,5.157]
[1748650304251,0.78866,2534.7,2534.5,5.9457]
[1748650304851,2.12241,2534.9,2534.6,0.78867]
[1748650305152,1.3338,2534.9,2534.5,5.157]
[1748650305350,1.3338,2534.9,2534.3,0.00592312]
[1748650305556,0.78875,2534.4,2534.3,0.00592312]
[1748650306347,2.76088,2534.7,2534.3,0.00592312]
[1748650306547,1.9722,2534.7,2534.3,0.00592312]
[1748650306949,1.9722,2534.7,2534.5,0.7887]
[1748650307151,0.78861,2534.9,2534.7,0.78866]
[1748650307351,0.78861,2534.9,2534.7,2.04206]
[1748650307857,0.78863,2534.8,2534.7,1.2534]
[1748650308362,1.2496,2534.9,2534.6,5.157]
[1748650308552,2.03826,2534.7,2534.6,5.157]
[1748650314164,0.78875,2534.4,2534.3,0.00592312]
[1748650314958,3.99655,2534.4,2534.3,0.00592312]
[1748650315158,4.67215,2534.4,2534.3,0.00592312]
[1748650316056,0.78891,2533.9,2533.8,5.138]
[1748650316360,0.78894,2533.8,2533.7,3.2078]
[1748650316660,2.15264,2533.8,2533.7,3.2078]
[1748650317255,0.78897,2533.7,2533.6,5.138]
[1748650317455,0.789,2533.6,2533.5,0.00592312]
[1748650317857,2.1527,2533.6,2533.5,0.00592312]
[1748650319364,2.808,2533.6,2533.5,0.00592312]
[1748650319865,3.2078,2533.8,2533.5,0.00592312]
[1748650320065,0.00592312,2533.9,2533.7,0.78897]
[1748650320270,0.00592312,2533.9,2533.8,0.78894]
[1748650320464,3.8789,2534.4,2533.8,0.78894]
[1748650320662,2.0223,2534.6,2534.5,0.78872]
[1748650320965,3.2078,2534.7,2534.4,5.14]
[1748650321170,3.2078,2534.7,2534.5,0.78871]
[1748650321364,3.2078,2534.7,2534.5,2.13921]
[1748650321770,3.99647,2534.7,2534.5,1.3505]
[1748650322067,3.2078,2534.7,2534.6,0.78869]
[1748650322269,0.00592312,2534.9,2534.5,2.13919]
[1748650322569,0.00592312,2534.9,2534.5,1.3505]
[1748650322760,0.78869,2534.6,2534.5,1.3505]
[1748650323664,0.78878,2534.3,2534.2,5.139]
[1748650323863,3.2078,2534.4,2533.8,6.3748]
[1748650324063,0.78891,2533.9,2533.8,6.3748]
[1748650324371,0.78891,2533.9,2533.8,5.139]
[1748650324671,0.78898,2533.7,2533.5,3.84928497]
[1748650324874,0.789,2533.6,2533.5,0.00592312]
[1748650325570,1.238,2533.8,2533.5,0.00592312]
[1748650325772,2.02694,2533.8,2533.5,2.13474312]
[1748650327770,1.238,2533.8,2533.5,1.34572312]
[1748650327976,0.78885,2534.1,2533.5,1.34572312]
[1748650328274,3.2078,2534.0,2533.5,0.00592312]
[1748650328482,0.789,2533.6,2533.5,0.00592312]
[1748650329173,2.7957,2533.6,2533.5,0.00592312]
[1748650329467,2.7957,2533.6,2532.5,4.46496185]
[1748650329468,1.9726,2533.5,2532.5,3.84336185]
[1748650329674,0.78931,2532.6,2532.5,3.84336185]
[1748650329973,3.2078,2532.7,2532.2,0.78943]
[1748650329974,0.78934,2532.5,2532.2,0.78943]
[1748650330173,1.3553,2532.5,2532.3,0.07897958]
[1748650330367,0.78937,2532.4,2532.3,0.07897958]
[1748650330679,0.00592312,2532.6,2532.5,0.78934]
[1748650330867,0.00592312,2532.6,2532.3,3.28677958]
[1748650331074,0.00592312,2532.6,2532.3,0.07897958]
[1748650331375,0.78935,2532.5,2532.3,1.36147958]
[1748650331777,0.78937,2532.4,2532.3,0.07897958]
[1748650332273,0.78944,2532.2,2532.1,0.00592312]
[1748650332475,0.78944,2532.2,2531.6,8.98336185]
[1748650332476,0.78959,2531.7,2531.6,8.98336185]
[1748650332678,3.99739,2531.7,2531.6,3.84336185]
[1748650332879,8.99739,2531.7,2531.6,3.84336185]
[1748650333182,3.99739,2531.7,2531.6,3.84336185]
[1748650334074,4.4451,2532.1,2531.6,3.84336185]
[1748650334281,3.2078,2531.8,2531.5,5.141]
[1748650334576,0.78955,2531.9,2531.5,6.3795]
[1748650334875,1.3481,2531.7,2531.5,6.3795]
[1748650335077,1.3481,2531.7,2531.5,7.16915]
[1748650335876,0.78952,2532.0,2531.5,2.02815]
[1748650336177,3.2078,2531.8,2531.5,5.142]
[1748650336374,3.99725,2532.2,2531.8,0.78954]
[1748650336680,3.2078,2532.3,2531.6,1.2385]
[1748650336978,3.2078,2532.3,2532.2,0.78944]
[1748650337276,1.3228,2532.5,2532.1,3.2078]
[1748650337574,1.3228,2532.5,2532.2,1.3675]
[1748650337781,0.00592312,2532.6,2532.5,0.78934]
[1748650338079,0.00592312,2532.6,2532.5,5.93134]
[1748650338267,0.00592312,2532.6,2532.5,12.29884]
[1748650338778,0.00592312,2532.6,2532.5,7.29884]
[1748650339072,0.00592312,2532.6,2532.5,6.5095]
[1748650339276,0.00592312,2532.6,2532.1,5.93145]
[1748650339474,2.78135312,2532.6,2532.2,0.78943]
[1748650339672,1.99202312,2532.6,2532.1,5.93146]
[1748650339867,0.78936,2532.5,2532.1,5.93146]
[1748650340073,1.3563,2532.4,2532.1,5.93146]
[1748650340274,0.68782312,2532.6,2532.1,5.142]
[1748650340473,0.00592312,2532.6,2532.5,0.78934]
[1748650341373,0.00592312,2532.6,2532.2,1.9259]
[1748650341672,0.78939,2532.4,2532.1,3.99725]
[1748650341872,1.3563,2532.3,2532.2,5.143]
[1748650342878,2.14571,2532.3,2532.2,5.143]
[1748650343074,1.3563,2532.3,2532.2,5.143]
[1748650343979,0.00592312,2532.6,2532.5,0.78934]
[1748650344181,0.00592312,2532.6,2532.2,6.4416]
[1748650344380,0.78939,2532.4,2532.2,6.4416]
[1748650344983,1.24742312,2532.6,2532.2,6.4416]
[1748650345283,0.00592312,2532.6,2532.5,0.78934]
[1748650345484,0.00592312,2532.6,2532.5,2.75864]
[1748650345672,0.00592312,2532.6,2532.5,7.75864]
[1748650345878,5.1184,2533.3,2532.6,1.97325]
[1748650346075,3.2078,2533.3,2533.2,0.78913]
[1748650346383,0.6765,2533.8,2533.2,0.78913]
[1748650346384,0.78898,2533.7,2533.4,0.78903]
[1748650346576,0.78898,2533.7,2533.4,0.78904]
[1748650346781,0.6765,2533.8,2533.6,0.78898]
[1748650346782,0.00592312,2533.8,2533.6,0.78898]
[1748650346974,0.00592312,2533.8,2533.7,5.90797]
[1748650347178,0.00592312,2533.8,2533.7,7.23617]
[1748650347877,0.00592312,2533.8,2533.7,10.44397]
[1748650349587,0.6691,2534.4,2533.7,15.44397]
[1748650349784,0.6691,2534.4,2533.7,9.655]
[1748650349985,1.2494,2534.3,2533.9,0.7889]
[1748650350280,1.2494,2534.3,2533.7,9.655]
[1748650350584,1.25532312,2534.3,2534.1,0.78884]
[1748650350784,1.25532312,2534.3,2534.2,5.118]
[1748650350980,2.04412312,2534.3,2533.9,0.7889]
[1748650351283,0.00592312,2534.3,2534.2,5.118]
[1748650351485,0.00592312,2534.3,2534.2,7.16911]
[1748650351690,0.00592312,2534.3,2534.2,10.37691]
[1748650351984,3.12e-06,2534.3,2534.2,15.37691]
[1748650352187,3.12e-06,2534.3,2534.2,16.03561]
[1748650355786,3.12e-06,2534.3,2534.2,11.03561]
[1748650355983,3.12e-06,2534.3,2534.2,16.03561]
[1748650356884,3.12e-06,2534.3,2534.2,15.2468]
[1748650357084,0.78878312,2534.3,2534.2,9.5871]
[1748650357283,3.12e-06,2534.3,2534.2,5.117]
[1748650357796,1.34060312,2534.3,2534.2,5.117]
[1748650358085,3.12e-06,2534.3,2534.2,5.117]
[1748650359389,0.78878312,2534.3,2534.2,5.117]
[1748650359887,0.78881,2534.2,2534.1,39.792]
[1748650360092,2.11651,2534.2,2534.1,44.908]
[1748650360683,1.97212,2534.1,2533.6,3.2078]
[1748650360888,0.789,2533.7,2533.6,3.2078]
[1748650361080,0.78895,2533.8,2533.6,3.2078]
[1748650361392,0.789,2533.6,2533.5,5.116]
[1748650361993,5.789,2533.6,2533.5,5.116]
[1748650362192,0.78906,2533.4,2533.3,0.00592312]
[1748650362398,0.6589,2533.5,2532.7,5.117]
[1748650362589,2.13792,2533.3,2532.9,0.78919]
[1748650362784,3.8667,2533.5,2532.8,5.117]
[1748650363089,3.2078,2533.5,2532.9,9.5811]
[1748650363281,0.78919,2533.0,2532.9,8.3248]
[1748650363590,0.78919,2533.0,2532.9,5.117]
[1748650364190,0.78925,2532.8,2532.7,0.00592312]
[1748650364884,2.14995,2532.8,2532.7,0.00592312]
[1748650365892,0.00592312,2533.0,2532.7,0.00592312]
[1748650366085,0.78922,2532.9,2532.7,0.00592312]
[1748650366394,0.00592312,2533.0,2532.7,1.30402312]
[1748650366591,0.78925,2532.8,2532.7,0.00592312]
[1748650367088,2.14995,2532.8,2532.7,0.00592312]
[1748650369589,2.14995,2532.8,2532.7,3.12e-06]
[1748650369897,7.14995,2532.8,2532.7,3.12e-06]
[1748650371497,0.78969,2531.4,2531.3,39.789]
[1748650371797,0.78969,2531.4,2531.3,44.908]
[1748650371999,0.78966,2531.5,2531.3,44.908]
[1748650372199,1.2474,2531.6,2531.3,44.908]
[1748650372389,0.78967,2531.5,2531.3,46.2674]
[1748650372805,0.78969,2531.4,2531.3,49.4752]
[1748650373002,0.78969,2531.4,2531.3,44.908]
[1748650373393,0.78967,2531.5,2531.3,44.908]
[1748650373593,0.00592312,2531.7,2531.3,48.1158]
[1748650373796,0.00592312,2531.7,2531.4,1.3412]
[1748650373998,0.00592312,2531.7,2531.6,0.78963]
[1748650375903,0.00592312,2531.7,2531.4,1.3412]
[1748650376102,0.00592312,2531.7,2531.6,0.78963]
[1748650376900,0.00592312,2531.7,2531.5,0.78964]
[1748650377100,1.36302312,2531.7,2531.5,0.78964]
[1748650377296,2.15262312,2531.7,2531.5,0.78964]
[1748650378103,1.36302312,2531.7,2531.5,0.78964]
[1748650378401,0.00592312,2531.7,2531.4,0.78969]
[1748650378704,0.78963,2531.6,2531.3,50.16001]
[1748650379003,2.14673,2531.6,2531.4,0.78969]
[1748650379196,0.79553312,2531.7,2531.3,49.3703]
[1748650379903,0.00592312,2531.7,2531.5,0.78964]
[1748650380091,0.00592312,2531.7,2531.4,0.78969]
[1748650380302,2.05253312,2531.7,2531.4,0.78969]
[1748650380590,1.26292312,2531.7,2531.5,0.78964]
[1748650380796,2.05253312,2531.7,2531.5,0.78964]
[1748650380994,0.78969,2531.4,2531.3,48.1158]
[1748650381195,0.78967,2531.5,2531.3,44.908]
[1748650381395,1.257,2531.4,2531.3,44.908]
[1748650381597,1.257,2531.4,2531.3,45.6977]
[1748650381792,1.257,2531.4,2531.3,44.908]
[1748650381997,1.257,2531.4,2531.3,45.69772]
[1748650382193,1.257,2531.4,2531.3,44.908]
[1748650382391,2.04669,2531.4,2531.3,44.908]
[1748650382592,0.78972,2531.3,2531.2,0.00592312]
[1748650383203,0.78972,2531.3,2530.9,5.098]
[1748650383204,0.78981,2531.0,2530.9,5.098]
[1748650384009,0.78981,2531.1,2530.9,5.098]
[1748650384296,0.1975,2531.3,2530.9,5.098]
[1748650384504,0.78981,2531.0,2530.9,5.098]
[1748650385300,1.41241,2531.0,2530.9,5.098]
[1748650385698,2.70501,2531.0,2530.9,5.098]
[1748650385895,1.9152,2531.0,2530.9,5.098]
[1748650386211,0.1975,2531.3,2531.2,0.78975]
[1748650386501,0.1975,2531.3,2530.9,5.098]
[1748650386502,3.4053,2531.3,2530.9,5.098]
[1748650386802,1.2926,2531.2,2530.9,5.098]
[1748650387003,1.2926,2531.2,2530.9,5.1]
[1748650387202,1.2926,2531.2,2531.1,0.78978]
[1748650387403,0.00592312,2531.7,2531.1,0.78978]
[1748650387404,0.00592312,2531.7,2531.6,0.78963]
[1748650387704,0.00592312,2531.7,2531.6,5.88963]
[1748650389605,0.00592312,2531.7,2531.6,5.1]
[1748650389903,0.00592312,2531.7,2531.6,5.88963]
[1748650390499,0.00592312,2531.7,2531.3,1.2992]
[1748650390699,0.00592312,2531.7,2531.2,5.099]
[1748650390908,3.99752,2531.3,2531.2,5.099]
[1748650391606,4.5253,2531.6,2531.2,5.099]
[1748650391804,3.99752,2531.3,2531.2,5.099]
[1748650392203,8.2078,2531.3,2530.7,9.10361312]
[1748650392406,3.99768,2530.8,2530.7,5.10592312]
[1748650393006,0.78986,2530.9,2530.7,5.10592312]
[1748650393206,2.65384,2531.0,2530.7,5.89582312]
[1748650393403,2.65383,2531.0,2530.7,5.89582312]
[1748650393599,0.78988,2530.8,2530.7,5.10592312]
[1748650393803,2.65383,2531.0,2530.7,5.89581312]
[1748650394011,2.65383,2531.0,2530.8,0.78987]
[1748650394211,1.864,2531.0,2530.7,5.10592312]
[1748650394411,1.2465,2531.0,2530.8,1.2774]
[1748650394713,1.2465,2531.0,2530.7,5.10592312]
[1748650395008,2.03633,2531.0,2530.7,5.89581312]
[1748650395315,1.2465,2531.0,2530.7,5.10592312]
[1748650395609,3.2078,2530.9,2530.7,5.89581312]
[1748650395817,1.3498,2530.8,2530.7,0.79581312]
[1748650397009,1.3498,2530.8,2530.7,0.00592312]
[1748650397209,1.3498,2530.8,2530.7,0.79583312]
[1748650397516,3.2078,2531.2,2531.1,0.78978]
[1748650398009,3.2078,2531.2,2531.1,5.88978]
[1748650398606,3.8754,2531.6,2531.1,5.1]
[1748650398816,5.96045,2531.6,2531.3,0.7897]
[1748650399009,5.1708,2531.6,2531.1,5.1]
[1748650399214,0.78968,2531.5,2531.2,0.78973]
[1748650399511,1.2954,2531.4,2531.1,5.1]
[1748650399704,0.78977,2531.2,2531.0,5.1]
[1748650399909,1.2954,2531.1,2531.0,5.1]
[1748650400104,2.08518,2531.1,2531.0,5.1]
[1748650400306,1.2954,2531.1,2531.0,5.1]
[1748650400807,1.2954,2531.1,2531.0,5.88981]
[1748650401006,2.08518,2531.1,2531.0,5.1]
[1748650401203,3.2078,2531.3,2531.0,5.1]
[1748650401604,3.2078,2531.3,2531.2,0.78975]
[1748650401915,0.00592312,2531.7,2531.6,0.78963]
[1748650402114,0.79554312,2531.7,2531.3,1.2876]
[1748650402319,2.06623,2531.6,2531.4,0.78968]
[1748650402613,2.06623,2531.6,2531.0,5.1]
[1748650402614,0.78977,2531.2,2531.0,5.1]
[1748650402912,1.2766,2531.1,2531.0,5.88981]
[1748650403119,2.06638,2531.1,2531.0,5.1]
[1748650403303,1.2766,2531.1,2530.5,3.2078]
[1748650403505,0.78983,2531.0,2530.7,0.79582312]
[1748650403708,1.9376,2531.1,2530.7,2.08342312]
[1748650403909,0.78986,2530.9,2530.7,2.08342312]
[1748650404419,0.78986,2530.9,2530.7,0.79582312]
[1748650404918,1.9376,2531.1,2530.7,0.00592312]
[1748650405121,0.78988,2530.8,2530.7,0.00592312]
[1748650405417,0.78986,2530.9,2530.7,0.00592312]
[1748650405617,1.2962,2530.8,2530.7,0.79583312]
[1748650405914,2.08608,2530.8,2530.7,0.00592312]
[1748650406319,0.79003,2530.3,2530.2,3.2078]
[1748650406619,0.78998,2530.5,2530.2,0.79004]
[1748650406820,2.08622,2530.4,2530.1,5.86809]
[1748650407320,1.2962,2530.4,2530.1,5.078]
[1748650407513,2.08622,2530.4,2530.1,5.86808]
[1748650408114,1.2962,2530.4,2530.1,5.078]
[1748650408421,2.08622,2530.4,2530.1,5.86808]
[1748650408618,2.08621,2530.4,2530.1,5.86808]
[1748650409013,1.2962,2530.4,2530.2,0.79006]
[1748650409216,0.79006,2530.2,2530.1,5.078]
[1748650409622,0.79005,2530.3,2530.1,5.078]
[1748650409816,0.79006,2530.2,2530.1,5.078]
[1748650410122,0.79005,2530.3,2530.1,5.078]
[1748650410424,1.30212312,2530.4,2530.1,5.078]
[1748650410624,0.79006,2530.2,2530.1,5.078]
[1748650411625,4.64865,2530.3,2530.1,5.078]
[1748650411921,0.1976,2530.2,2530.1,5.8681]
[1748650413423,0.1976,2530.2,2530.1,5.078]
[1748650413726,0.98766,2530.2,2530.1,5.078]
[1748650414115,1.5552,2530.2,2529.5,3.2078]
[1748650414322,0.79021,2529.8,2529.6,5.079]
[1748650414520,0.7902,2529.8,2529.6,5.079]
[1748650415019,0.79022,2529.7,2529.6,5.079]
[1748650415320,2.14782,2529.7,2529.6,5.079]
[1748650415529,1.3576,2529.7,2529.5,3.2078]
[1748650415719,1.3576,2529.7,2529.5,3.99807]
[1748650416023,1.3576,2529.7,2529.6,0.79025]
[1748650416420,1.3576,2529.7,2529.5,3.99807]
[1748650416620,1.3576,2529.7,2529.5,3.2078]
[1748650416919,1.3576,2529.7,2529.6,0.79025]
[1748650417222,0.79028,2529.5,2529.3,5.86933]
[1748650417423,1.3462,2529.4,2529.3,5.079]
[1748650417620,1.3462,2529.4,2529.3,5.86935]
[1748650417831,1.3462,2529.4,2529.3,5.079]
[1748650419115,2.13651,2529.4,2529.3,5.079]